fUST/lending_fUST_20240801
["ID","MTS","AMOUNT","RATE_DAILY","PERIOD"]
[333766032,1722461458247,-1181.06,0.00015068,2]
[333766033,1722461458257,-500.0,0.00015068,2]
[333766034,1722461458267,-500.0,0.00015068,2]
[333766035,1722461458278,-500.0,0.00015068,2]
[333766036,1722461458288,-1066.94,0.00015068,2]
[333766037,1722461458298,-611.77,0.00015068,2]
[333766038,1722461458308,-543.21,0.00015068,2]
[333766039,1722461458320,-500.0,0.00015068,2]
[333766040,1722461458331,-548.380905,0.00015068,2]
[333766041,1722461458341,-548.380905,0.00015068,2]
[333766042,1722461458351,-548.380905,0.00015068,2]
[333766043,1722461458361,-548.380905,0.00015068,2]
[333766044,1722461458370,-500.0,0.00015068,2]
[333766045,1722461458380,-500.0,0.00015068,2]
[333766046,1722461458389,-1192.85,0.00015068,2]
[333766047,1722461458399,-880.9825185,0.00015068,2]
[333766048,1722461458556,-192.0674815,0.00015068,2]
[333766049,1722461458567,-500.0,0.00015068,2]
[333766050,1722461458576,-500.0,0.00015068,2]
[333766051,1722461458586,-500.0,0.00015068,2]
[333766052,1722461458596,-686.29,0.00015068,2]
[333766053,1722461458604,-500.0,0.00015068,2]
[333766054,1722461458614,-500.0,0.00015068,2]
[333766055,1722461458624,-500.0,0.00015068,2]
[333766056,1722461458633,-500.0,0.00015068,2]
[333766057,1722461458643,-500.0,0.00015068,2]
[333766058,1722461458652,-688.1,0.00015068,2]
[333766059,1722461458662,-500.0,0.00015068,2]
[333766060,1722461458676,-448.141344,0.00015068,2]
[333766061,1722461458686,-181.59985438,0.00015068,2]
[333766062,1722461458914,-266.54148962,0.00015068,2]
[333766063,1722461458924,-186.45851038,0.00015068,2]
[333766064,1722461459102,-52.37290691,0.00015068,2]
[333766065,1722461459112,-500.0,0.00015068,2]
[333766066,1722461459121,-526.65,0.00015068,2]
[333766067,1722461459131,-215.41142487,0.00015068,2]
[333766068,1722461459143,-1305.55857513,0.00015068,2]
[333766069,1722461459153,-659.97,0.00015068,2]
[333766070,1722461459163,-683.72,0.00015068,2]
[333766071,1722461459173,-649.22,0.00015068,2]
[333766072,1722461459182,-712.86,0.00015068,2]
[333766073,1722461459192,-812.53,0.00015068,2]
[333766074,1722461459202,-523.71,0.00015068,2]
[333766075,1722461459212,-184.358229,0.00015068,2]
[333766076,1722461459222,-184.358229,0.00015068,2]
[333766077,1722461459233,-616.88,0.00015068,2]
[333766078,1722461459243,-743.52,0.00015068,2]
[333766079,1722461459254,-500.0,0.00015068,2]
[333766080,1722461459264,-500.0,0.00015068,2]
[333766081,1722461459274,-151.0,0.00015068,2]
[333766082,1722461459285,-176.135577,0.00015068,2]
[333766083,1722461459294,-500.0,0.00015068,2]
[333766084,1722461459304,-176.135577,0.00015068,2]
[333766085,1722461459314,-507.52,0.00015068,2]
[333766086,1722461459324,-500.0,0.00015068,2]
[333766087,1722461459334,-500.0,0.00015068,2]
[333766088,1722461459344,-1150.37,0.00015068,2]
[333766089,1722461459353,-198.86513,0.00015068,2]
[333766090,1722461459363,-3622.8,0.00015068,2]
[333766091,1722461459373,-198.86513,0.00015068,2]
[333766092,1722461459383,-1759.95,0.00015068,2]
[333766093,1722461459393,-500.0,0.00015068,2]
[333766094,1722461459403,-500.0,0.00015068,2]
[333766095,1722461459412,-500.0,0.00015068,2]
[333766096,1722461459422,-500.0,0.00015068,2]
[333766097,1722461459433,-820.72,0.00015068,2]
[333766098,1722461459442,-500.0,0.00015068,2]
[333766099,1722461459453,-500.0,0.00015068,2]
[333766100,1722461459463,-1038.94,0.00015068,2]
[333766101,1722461459473,-894.18,0.00015068,2]
[333766102,1722461459483,-644.77474,0.00015068,2]
[333766103,1722461459492,-631.82,0.00015068,2]
[333766104,1722461459502,-644.77474,0.00015068,2]
[333766105,1722461459512,-500.0,0.00015068,2]
[333766106,1722461459521,-151.0,0.00015068,2]
[333766107,1722461459531,-556.5563488,0.00015068,2]
[333766108,1722461459541,-62.26583773,0.00015068,2]
[333766109,1722461507277,196.26752996,9.999e-05,2]
[333766110,1722461511757,290.23456101,9.999e-05,2]
[333766111,1722461514565,154.76781663,0.0001,2]
[333766125,1722461635914,611.93757659,0.0001,2]
[333766128,1722462398144,-156.31,0.00010959,2]
[333766129,1722462398169,-63.5778212,0.00010959,2]
[333766159,1722462631882,-300.0,0.00012237,2]
[333766162,1722462631893,-300.0,0.00012237,2]
[333766164,1722462631903,-6865.07413554,0.00012238,2]
[333766174,1722462631997,-12230.83028153,0.00012238,2]
[333766176,1722462632009,-3695.0,0.00012238,2]
[333766192,1722462632165,-2109.09558293,0.00012238,2]
[333766194,1722462632176,-165.946108,0.00012986,2]
[333766195,1722462632188,-473.83614436,0.00013,2]
[333766197,1722462632198,-335.72666735,0.000132,2]
[333766198,1722462632208,-420.0,0.00013461,2]
[333766200,1722462632218,-2039.08409019,0.000135,2]
[333766201,1722462632229,-7167.89938742,0.00013598,2]
[333766203,1722462632238,-527.06939469,0.000136,2]
[333766204,1722462632249,-150.112233,0.000136,2]
[333766206,1722462632260,-508.8345234,0.00013698,2]
[333766207,1722462632269,-533.88971045,0.00013698,2]
[333766209,1722462632280,-500.0,0.00013698,2]
[333766211,1722462632291,-500.0,0.00013698,2]
[333766212,1722462632302,-500.0,0.00013698,2]
[333766214,1722462632312,-500.0,0.00013698,2]
[333766216,1722462632322,-266.34056533,0.00013698,2]
[333766217,1722462632332,-500.0,0.00013698,2]
[333766219,1722462632342,-891.79,0.00013698,2]
[333766220,1722462632351,-500.0,0.00013698,2]
[333766222,1722462632361,-268.18441123,0.00013698,2]
[333766223,1722462632371,-500.0,0.00013698,2]
[333766225,1722462632381,-500.0,0.00013698,2]
[333766227,1722462632390,-500.0,0.00013698,2]
[333766228,1722462632400,-500.0,0.00013698,2]
[333766230,1722462632410,-500.0,0.00013698,2]
[333766231,1722462632421,-500.0,0.00013698,2]
[333766233,1722462632431,-500.0,0.00013698,2]
[333766234,1722462632442,-500.0,0.00013698,2]
[333766236,1722462632454,-500.0,0.00013698,2]
[333766238,1722462632464,-506.25486992,0.00013698,2]
[333766239,1722462632474,-500.0,0.00013698,2]
[333766241,1722462632485,-500.0,0.00013698,2]
[333766242,1722462632495,-500.0,0.00013698,2]
[333766244,1722462632507,-500.0,0.00013698,2]
[333766245,1722462632518,-500.0,0.00013698,2]
[333766247,1722462632528,-121.19631633,0.00013698,2]
[333766296,1722462638057,-705.39167507,0.00010959,2]
[333766300,1722462638107,-12.57832493,0.00010959,2]
[333766301,1722462638118,-378.80368367,0.00013698,2]
[333766303,1722462638128,-500.0,0.00013698,2]
[333766305,1722462638139,-483.6799339,0.00013698,2]
[333766307,1722462638151,-16.3200661,0.00013698,2]
[333766308,1722462638161,-500.0,0.00013698,2]
[333766309,1722462638170,-500.0,0.00013698,2]
[333766310,1722462638179,-584.56949943,0.00013698,2]
[333766311,1722462638189,-844.66,0.00013698,2]
[333766312,1722462638199,-500.0,0.00013698,2]
[333766313,1722462638208,-500.0,0.00013698,2]
[333766314,1722462638217,-500.0,0.00013698,2]
[333766315,1722462638226,-500.0,0.00013698,2]
[333766316,1722462638236,-500.0,0.00013698,2]
[333766317,1722462638245,-500.0,0.00013698,2]
[333766318,1722462638255,-500.0,0.00013698,2]
[333766319,1722462638264,-500.0,0.00013698,2]
[333766320,1722462638273,-500.0,0.00013698,2]
[333766321,1722462638282,-500.0,0.00013698,2]
[333766322,1722462638292,-500.0,0.00013698,2]
[333766323,1722462638301,-944.34,0.00013698,2]
[333766324,1722462638311,-500.0,0.00013698,2]
[333766325,1722462638320,-514.72,0.00013698,2]
[333766326,1722462638330,-500.0,0.00013698,2]
[333766327,1722462638339,-500.0,0.00013698,2]
[333766328,1722462638348,-500.0,0.00013698,2]
[333766329,1722462638357,-500.0,0.00013698,2]
[333766330,1722462638367,-500.0,0.00013698,2]
[333766331,1722462638377,-500.0,0.00013698,2]
[333766332,1722462638386,-500.0,0.00013698,2]
[333766333,1722462638396,-642.89,0.00013698,2]
[333766334,1722462638406,-1079.01,0.00013698,2]
[333766336,1722462638416,-500.0,0.00013698,2]
[333766338,1722462638426,-500.0,0.00013698,2]
[333766339,1722462638436,-508.45396723,0.00013698,2]
[333766341,1722462638446,-500.0,0.00013698,2]
[333766342,1722462638456,-500.0,0.00013698,2]
[333766344,1722462638466,-500.0,0.00013698,2]
[333766346,1722462638475,-500.0,0.00013698,2]
[333766348,1722462638485,-544.74,0.00013698,2]
[333766349,1722462638494,-1204.11,0.00013698,2]
[333766350,1722462638504,-500.0,0.00013698,2]
[333766351,1722462638514,-500.0,0.00013698,2]
[333766352,1722462638524,-500.0,0.00013698,2]
[333766353,1722462638533,-500.0,0.00013698,2]
[333766354,1722462638543,-522.47,0.00013698,2]
[333766355,1722462638553,-560.02860855,0.00013698,2]
[333766356,1722462638563,-602.68,0.00013698,2]
[333766357,1722462638573,-564.35,0.00013698,2]
[333766358,1722462638583,-500.0,0.00013698,2]
[333766359,1722462638592,-500.0,0.00013698,2]
[333766360,1722462638603,-541.28,0.00013698,2]
[333766361,1722462638613,-643.25,0.00013698,2]
[333766362,1722462638623,-500.0,0.00013698,2]
[333766363,1722462638633,-500.0,0.00013698,2]
[333766364,1722462638643,-364.80058449,0.00013698,2]
[333766365,1722462638652,-500.0,0.00013698,2]
[333766366,1722462638663,-500.0,0.00013698,2]
[333766367,1722462638673,-500.0,0.00013698,2]
[333766368,1722462638683,-500.0,0.00013698,2]
[333766369,1722462638694,-500.0,0.00013698,2]
[333766370,1722462638705,-502.51104892,0.00013698,2]
[333766371,1722462638717,-649.74,0.00013698,2]
[333766372,1722462638728,-500.0,0.00013698,2]
[333766373,1722462638738,-500.0,0.00013698,2]
[333766374,1722462638748,-1499.28,0.00013698,2]
[333766375,1722462638758,-500.0,0.00013698,2]
[333766376,1722462638767,-822.5,0.00013698,2]
[333766377,1722462638776,-500.0,0.00013698,2]
[333766378,1722462638786,-500.0,0.00013698,2]
[333766379,1722462638795,-500.0,0.00013698,2]
[333766380,1722462638804,-500.0,0.00013698,2]
[333766381,1722462638813,-500.0,0.00013698,2]
[333766382,1722462638823,-500.0,0.00013698,2]
[333766383,1722462638832,-500.0,0.00013698,2]
[333766384,1722462638842,-1600.34,0.00013698,2]
[333766385,1722462638851,-500.0,0.00013698,2]
[333766386,1722462638861,-500.0,0.00013698,2]
[333766387,1722462638871,-500.0,0.00013698,2]
[333766388,1722462638880,-1264.95,0.00013698,2]
[333766389,1722462638891,-500.0,0.00013698,2]
[333766390,1722462638902,-516.54394156,0.00013698,2]
[333766391,1722462638912,-500.0,0.00013698,2]
[333766392,1722462638924,-504.20254421,0.00013698,2]
[333766393,1722462638935,-500.0,0.00013698,2]
[333766394,1722462638946,-500.0,0.00013698,2]
[333766395,1722462638959,-2468.56,0.00013698,2]
[333766396,1722462638969,-595.89625594,0.00013698,2]
[333766397,1722462638979,-500.0,0.00013698,2]
[333766398,1722462638990,-500.0,0.00013698,2]
[333766399,1722462639000,-7328.76,0.00013698,2]
[333766400,1722462639011,-500.0,0.00013698,2]
[333766401,1722462639025,-500.0,0.00013698,2]
[333766402,1722462639037,-1253.02,0.00013698,2]
[333766403,1722462639046,-177.56488755,0.00013698,2]
[333766404,1722462639056,-500.0,0.00013698,2]
[333766405,1722462639066,-500.0,0.00013698,2]
[333766406,1722462639191,-763.19,0.00013698,2]
[333766407,1722462639202,-500.0,0.00013698,2]
[333766408,1722462639211,-500.0,0.00013698,2]
[333766409,1722462639221,-2530.58,0.00013698,2]
[333766410,1722462639230,-500.0,0.00013698,2]
[333766411,1722462639240,-565.96,0.00013698,2]
[333766412,1722462639251,-500.0,0.00013698,2]
[333766413,1722462639260,-500.0,0.00013698,2]
[333766414,1722462639270,-500.0,0.00013698,2]
[333766415,1722462639280,-5057.72,0.00013698,2]
[333766416,1722462639289,-500.0,0.00013698,2]
[333766417,1722462639298,-500.0,0.00013698,2]
[333766418,1722462639308,-980.72,0.00013698,2]
[333766419,1722462639317,-557.45531305,0.00013698,2]
[333766420,1722462639326,-1367.79,0.00013698,2]
[333766421,1722462639336,-500.0,0.00013698,2]
[333766422,1722462639346,-500.0,0.00013698,2]
[333766423,1722462639357,-457.39478757,0.00013698,2]
[333766424,1722462639368,-500.0,0.00013698,2]
[333766425,1722462639378,-500.0,0.00013698,2]
[333766426,1722462639388,-500.0,0.00013698,2]
[333766427,1722462639397,-500.0,0.00013698,2]
[333766428,1722462639407,-1155.64,0.00013698,2]
[333766430,1722462639416,-500.0,0.00013698,2]
[333766432,1722462639427,-500.0,0.00013698,2]
[333766433,1722462639438,-515.05,0.00013698,2]
[333766434,1722462639449,-325.25098328,0.00013698,2]
[333766435,1722462639459,-2031.42,0.00013698,2]
[333766436,1722462639469,-500.0,0.00013698,2]
[333766437,1722462639478,-500.0,0.00013698,2]
[333766438,1722462639488,-220.70281175,0.00013698,2]
[333766439,1722462639497,-500.0,0.00013698,2]
[333766440,1722462639507,-816.06,0.00013698,2]
[333766441,1722462639516,-500.0,0.00013698,2]
[333766442,1722462639525,-500.0,0.00013698,2]
[333766443,1722462639536,-500.0,0.00013698,2]
[333766444,1722462639548,-500.0,0.00013698,2]
[333766445,1722462639559,-500.0,0.00013698,2]
[333766446,1722462639569,-819.74,0.00013698,2]
[333766447,1722462639578,-1193.99,0.00013698,2]
[333766448,1722462639590,-1088.93,0.00013698,2]
[333766449,1722462639601,-1314.38,0.00013698,2]
[333766451,1722462639611,-500.0,0.00013698,2]
[333766452,1722462639621,-574.73,0.00013698,2]
[333766453,1722462639631,-827.11,0.00013698,2]
[333766455,1722462639642,-500.0,0.00013698,2]
[333766457,1722462639651,-506.97,0.00013698,2]
[333766459,1722462639662,-500.0,0.00013698,2]
[333766462,1722462639674,-1143.39,0.00013698,2]
[333766465,1722462639683,-319.28470037,0.00013698,2]
[333766481,1722462639897,-464.75529963,0.00013698,2]
[333766482,1722462639908,-446.34328046,0.00013698,2]
[333766483,1722462639919,-1518.83,0.00013698,2]
[333766484,1722462639929,-500.0,0.00013698,2]
[333766485,1722462639939,-532.13,0.00013698,2]
[333766486,1722462639949,-60.60368827,0.00013698,2]
[333766489,1722462640232,-1247.93555226,0.00013698,2]
[333766490,1722462640247,-1141.36075947,0.00013698,2]
[333766491,1722462640258,-1140.98,0.00013698,2]
[333766492,1722462640269,-1054.65,0.00013698,2]
[333766493,1722462640281,-500.0,0.00013698,2]
[333766494,1722462640291,-671.6,0.00013698,2]
[333766495,1722462640301,-500.0,0.00013698,2]
[333766496,1722462640310,-371.5155172,0.00013698,2]
[333766497,1722462640319,-677.29,0.00013698,2]
[333766498,1722462640328,-500.0,0.00013698,2]
[333766499,1722462640339,-500.0,0.00013698,2]
[333766500,1722462640349,-520.49,0.00013698,2]
[333766501,1722462640360,-745.75,0.00013698,2]
[333766502,1722462640369,-500.0,0.00013698,2]
[333766503,1722462640379,-500.0,0.00013698,2]
[333766504,1722462640388,-500.0,0.00013698,2]
[333766505,1722462640398,-2241.85,0.00013698,2]
[333766506,1722462640408,-930.79,0.00013698,2]
[333766507,1722462640419,-500.0,0.00013698,2]
[333766508,1722462640432,-910.71,0.00013698,2]
[333766509,1722462640442,-1044.65,0.00013698,2]
[333766510,1722462640451,-500.0,0.00013698,2]
[333766511,1722462640460,-3001.15,0.00013698,2]
[333766512,1722462640469,-3001.15,0.00013698,2]
[333766513,1722462640479,-3001.15,0.00013698,2]
[333766514,1722462640488,-3001.15,0.00013698,2]
[333766515,1722462640497,-3001.15,0.00013698,2]
[333766516,1722462640507,-3001.15,0.00013698,2]
[333766517,1722462640516,-3001.15,0.00013698,2]
[333766518,1722462640526,-3001.15,0.00013698,2]
[333766519,1722462640535,-3001.15,0.00013698,2]
[333766520,1722462640544,-500.0,0.00013698,2]
[333766521,1722462640553,-984.21,0.00013698,2]
[333766522,1722462640563,-6343.85,0.00013698,2]
[333766523,1722462640572,-500.0,0.00013698,2]
[333766524,1722462640581,-500.0,0.00013698,2]
[333766525,1722462640591,-7186.71,0.00013698,2]
[333766526,1722462640600,-1311.16,0.00013698,2]
[333766527,1722462640610,-501.20994446,0.00013698,2]
[333766528,1722462640619,-2619.15,0.00013698,2]
[333766529,1722462640629,-508.03,0.00013698,2]
[333766530,1722462640640,-1400.64,0.00013698,2]
[333766531,1722462640651,-500.0,0.00013698,2]
[333766532,1722462640660,-500.0,0.00013698,2]
[333766533,1722462640669,-256.68107644,0.00013698,2]
[333766534,1722462640678,-500.0,0.00013698,2]
[333766535,1722462640689,-558.81,0.00013698,2]
[333766536,1722462640701,-500.0,0.00013698,2]
[333766537,1722462640710,-500.0,0.00013698,2]
[333766538,1722462640719,-1228.37,0.00013698,2]
[333766539,1722462640729,-2629.04,0.00013698,2]
[333766540,1722462640739,-500.0,0.00013698,2]
[333766541,1722462640748,-500.0,0.00013698,2]
[333766542,1722462640758,-500.0,0.00013698,2]
[333766543,1722462640768,-3000.0,0.00013699,2]
[333766544,1722462640780,-314.694952,0.00013699,2]
[333766545,1722462640790,-500.0,0.00013699,2]
[333766546,1722462640799,-500.0,0.00013699,2]
[333766547,1722462640809,-500.0,0.00013699,2]
[333766548,1722462640818,-383.94925859,0.00013699,2]
[333766549,1722462640828,-500.0,0.00013699,2]
[333766550,1722462640838,-291.20043196,0.000137,2]
[333766551,1722462640848,-3001.15,0.0001396,2]
[333766552,1722462640858,-3001.15,0.00013961,2]
[333766553,1722462640867,-3001.15,0.00013961,2]
[333766554,1722462640877,-3001.15,0.00013961,2]
[333766555,1722462640889,-3001.15,0.00013961,2]
[333766556,1722462640898,-3001.15,0.00013961,2]
[333766557,1722462640908,-153.318994,0.00013971,2]
[333766558,1722462640918,-151.0,0.00013971,2]
[333766559,1722462640927,-151.0,0.00013971,2]
[333766560,1722462640937,-151.0,0.00013971,2]
[333766561,1722462640946,-3001.15,0.00013971,2]
[333766562,1722462640955,-3001.15,0.00013971,2]
[333766563,1722462640965,-3001.15,0.00013971,2]
[333766564,1722462640975,-472.863516,0.00013971,2]
[333766565,1722462640984,-472.863516,0.00013971,2]
[333766566,1722462640994,-500.0,0.00013971,2]
[333766567,1722462641003,-500.0,0.00013971,2]
[333766568,1722462641012,-226.83786871,0.00013971,2]
[333766569,1722462641026,-360.9634667,0.00013971,2]
[333766570,1722462641036,-500.0,0.00013971,2]
[333766571,1722462641047,-310.74375777,0.00013971,2]
[333766572,1722462641058,-500.0,0.00013971,2]
[333766573,1722462641069,-500.0,0.00013971,2]
[333766574,1722462641078,-500.0,0.00013971,2]
[333766575,1722462641089,-500.0,0.00013971,2]
[333766576,1722462641103,-200.0,0.00013971,2]
[333766577,1722462641113,-500.0,0.00013972,2]
[333766578,1722462641124,-500.0,0.00013972,2]
[333766579,1722462641136,-500.0,0.00013972,2]
[333766582,1722462641240,-891.79,0.00013972,2]
[333766584,1722462641251,-500.0,0.00013972,2]
[333766585,1722462641262,-500.0,0.00013972,2]
[333766587,1722462641272,-500.0,0.00013972,2]
[333766589,1722462641282,-500.0,0.00013972,2]
[333766590,1722462641292,-500.0,0.00013972,2]
[333766592,1722462641302,-500.0,0.00013972,2]
[333766594,1722462641312,-500.0,0.00013972,2]
[333766595,1722462641321,-500.0,0.00013972,2]
[333766596,1722462641330,-500.0,0.00013972,2]
[333766597,1722462641340,-500.0,0.00013972,2]
[333766598,1722462641349,-500.0,0.00013972,2]
[333766599,1722462641359,-500.0,0.00013972,2]
[333766600,1722462641368,-500.0,0.00013972,2]
[333766601,1722462641378,-500.0,0.00013972,2]
[333766602,1722462641390,-253.37515882,0.00013972,2]
[333766603,1722462641401,-500.0,0.00013972,2]
[333766604,1722462641411,-944.34,0.00013972,2]
[333766605,1722462641421,-500.0,0.00013972,2]
[333766606,1722462641431,-514.72,0.00013972,2]
[333766607,1722462641442,-500.0,0.00013972,2]
[333766608,1722462641453,-500.0,0.00013972,2]
[333766609,1722462641463,-500.0,0.00013972,2]
[333766610,1722462641473,-642.89,0.00013972,2]
[333766611,1722462641483,-1079.01,0.00013972,2]
[333766612,1722462641491,-500.0,0.00013972,2]
[333766613,1722462641502,-500.0,0.00013972,2]
[333766614,1722462641512,-500.0,0.00013972,2]
[333766615,1722462641524,-178.638265,0.00013972,2]
[333766616,1722462641534,-178.638265,0.00013972,2]
[333766617,1722462641544,-151.0,0.00013972,2]
[333766618,1722462641554,-544.74,0.00013972,2]
[333766619,1722462641563,-1204.11,0.00013972,2]
[333766620,1722462641573,-500.0,0.00013972,2]
[333766621,1722462641583,-251.192185,0.00013972,2]
[333766622,1722462641592,-251.192185,0.00013972,2]
[333766623,1722462641602,-151.0,0.00013972,2]
[333766624,1722462641612,-500.0,0.00013972,2]
[333766625,1722462641622,-151.0,0.00013972,2]
[333766626,1722462641632,-803.02003,0.00013972,2]
[333766627,1722462641644,-522.47,0.00013972,2]
[333766628,1722462641654,-803.02003,0.00013972,2]
[333766629,1722462641663,-602.68,0.00013972,2]
[333766630,1722462641673,-564.35,0.00013972,2]
[333766631,1722462641683,-500.0,0.00013972,2]
[333766632,1722462641694,-541.28,0.00013972,2]
[333766633,1722462641704,-643.25,0.00013972,2]
[333766634,1722462641714,-500.0,0.00013972,2]
[333766635,1722462641724,-151.0,0.00013972,2]
[333766636,1722462641734,-151.0,0.00013972,2]
[333766637,1722462641743,-589.432824,0.00013972,2]
[333766638,1722462641754,-151.0,0.00013972,2]
[333766639,1722462641763,-500.0,0.00013972,2]
[333766640,1722462641773,-589.432824,0.00013972,2]
[333766641,1722462641783,-500.0,0.00013972,2]
[333766642,1722462641793,-649.74,0.00013972,2]
[333766643,1722462641803,-500.0,0.00013972,2]
[333766644,1722462641812,-500.0,0.00013972,2]
[333766645,1722462641822,-1499.28,0.00013972,2]
[333766646,1722462641832,-151.0,0.00013972,2]
[333766647,1722462641842,-500.0,0.00013972,2]
[333766648,1722462641852,-822.5,0.00013972,2]
[333766649,1722462641861,-500.0,0.00013972,2]
[333766650,1722462641871,-500.0,0.00013972,2]
[333766651,1722462641881,-151.0,0.00013972,2]
[333766652,1722462641893,-594.71492574,0.00013972,2]
[333766653,1722462641902,-151.0,0.00013972,2]
[333766654,1722462641912,-1600.34,0.00013972,2]
[333766655,1722462641922,-500.0,0.00013972,2]
[333766656,1722462641932,-1264.95,0.00013972,2]
[333766657,1722462641942,-500.0,0.00013972,2]
[333766658,1722462641952,-500.0,0.00013972,2]
[333766659,1722462641962,-2468.56,0.00013972,2]
[333766660,1722462641972,-500.0,0.00013972,2]
[333766661,1722462641982,-151.0,0.00013972,2]
[333766662,1722462641991,-500.0,0.00013972,2]
[333766663,1722462642001,-7328.76,0.00013972,2]
[333766664,1722462642010,-500.0,0.00013972,2]
[333766665,1722462642019,-525.98533382,0.00013972,2]
[333766666,1722462642033,-1253.02,0.00013972,2]
[333766667,1722462642042,-763.19,0.00013972,2]
[333766668,1722462642051,-500.0,0.00013972,2]
[333766669,1722462642063,-2530.58,0.00013972,2]
[333766670,1722462642075,-500.0,0.00013972,2]
[333766671,1722462642084,-565.96,0.00013972,2]
[333766672,1722462642094,-500.0,0.00013972,2]
[333766673,1722462642113,-5057.72,0.00013972,2]
[333766674,1722462642123,-500.0,0.00013972,2]
[333766675,1722462642134,-500.0,0.00013972,2]
[333766676,1722462642144,-980.72,0.00013972,2]
[333766677,1722462642153,-1367.79,0.00013972,2]
[333766678,1722462642163,-500.0,0.00013972,2]
[333766679,1722462642172,-500.0,0.00013972,2]
[333766680,1722462642182,-500.0,0.00013972,2]
[333766681,1722462642192,-500.0,0.00013972,2]
[333766682,1722462642201,-515.05,0.00013972,2]
[333766683,1722462642211,-1155.64,0.00013972,2]
[333766684,1722462642221,-2031.42,0.00013972,2]
[333766685,1722462642231,-816.06,0.00013972,2]
[333766686,1722462642242,-500.0,0.00013972,2]
[333766687,1722462642252,-98.24102283,0.00013972,2]
[333766707,1722462643034,-165.946108,0.00012986,2]
[333766708,1722462643047,-543.21,0.00013698,2]
[333766709,1722462643057,-401.75897717,0.00013972,2]
[333766710,1722462643069,-500.0,0.00013972,2]
[333766711,1722462643079,-500.0,0.00013972,2]
[333766712,1722462643088,-819.74,0.00013972,2]
[333766713,1722462643100,-1193.99,0.00013972,2]
[333766714,1722462643111,-1088.93,0.00013972,2]
[333766715,1722462643121,-1314.38,0.00013972,2]
[333766716,1722462643131,-574.73,0.00013972,2]
[333766717,1722462643143,-357.85366525,0.00013972,2]
[333766718,1722462643160,-432.26951975,0.00013972,2]
[333766751,1722462646067,-36.986815,0.00013972,2]
[333766752,1722462646077,-500.0,0.00013972,2]
[333766753,1722462646086,-506.97,0.00013972,2]
[333766754,1722462646096,-1143.39,0.00013972,2]
[333766755,1722462646108,-784.04,0.00013972,2]
[333766756,1722462646118,-1518.83,0.00013972,2]
[333766757,1722462646128,-532.13,0.00013972,2]
[333766758,1722462646138,-2449.9,0.00013972,2]
[333766759,1722462646151,-1140.98,0.00013972,2]
[333766760,1722462646162,-1054.65,0.00013972,2]
[333766761,1722462646172,-500.0,0.00013972,2]
[333766762,1722462646182,-671.6,0.00013972,2]
[333766763,1722462646191,-677.29,0.00013972,2]
[333766764,1722462646201,-500.0,0.00013972,2]
[333766765,1722462646212,-520.49,0.00013972,2]
[333766766,1722462646221,-745.75,0.00013972,2]
[333766767,1722462646231,-500.0,0.00013972,2]
[333766768,1722462646242,-500.0,0.00013972,2]